Cogmind - Beta 14 --- EXPLORER MODE // 2024.09.16 @ 13:50:48 Player: SleepyBill Result: Destroyed by G-47 Trooper with Particle Gun Performance ------------- Evolutions (2) 1000 Regions Visited (3) 600 Robots Destroyed (63) 315 Value Destroyed (1961) 1961 Prototype IDs (2) 40 Alien Tech Used (0) 0 Bonus (0) 0 TOTAL SCORE: 3916 Bonus ------- None Cogmind --------- Core Integrity 0/550 Matter 36/300 Energy 430/430 System Corruption 0% Temperature Cool (9) Movement Core (700) Ox13 Location -8/Materials Parts ------- > --- POWER (3) -------- Improved Ion Engine Improved Ion Engine > --- PROPULSION (3) --- (None) > --- UTILITY (3) ------ Large Storage Unit Reaction Control System > --- WEAPON (3) ------- Particle Cannon Assault Rifle Light Assault Rifle > --- INVENTORY (15) --- Aluminum Leg Aluminum Leg High-capacity Matter Pod (200) Particle Cannon Particle Cannon Particle Cannon Advanced Beam Cannon Rocket Launcher Peak State ------------ > --- POWER ------------ Improved Ion Engine Nuclear Core Light Nuclear Core > --- PROPULSION ------- Titanium Leg Titanium Leg Titanium Leg > --- UTILITY ---------- Heat Sink Large Storage Unit Reaction Control System > --- WEAPON ----------- Advanced Beam Cannon Advanced Beam Cannon Advanced Beam Cannon > --- INVENTORY -------- Improved Ion Engine Nuclear Core Aluminum Leg Aluminum Leg High-capacity Matter Pod Particle Cannon Particle Cannon Particle Cannon Particle Cannon Assault Rifle Light Assault Rifle Rocket Launcher [Rating: 33] Favorites ----------- Power Improved Ion Engine Engine Improved Ion Engine Power Core Nuclear Core Propulsion Aluminum Leg Leg Aluminum Leg Utility Shield Generator Device Shield Generator Storage Large Storage Unit Protection Weapon Shielding Weapon Particle Cannon Energy Gun Small Laser Energy Cannon Particle Cannon Ballistic Gun Assault Rifle Launcher Rocket Launcher Build | -11 -10 -9 -8 ------- Run | Yrd Mat Mat Mat Slots Evolved 5 | . 1 2 2 Power 2 | . . 1 1 Propulsion 1 | . . . 1 Utility 1 | . . 1 . Weapon 1 | . 1 . . Parts Attached 50 | 8 15 16 11 Power 10 | 1 2 2 5 Engine 7 | 1 2 2 2 Core 3 | . . . 3 Reactor . | . . . . Propulsion 10 | 2 3 3 2 Treads . | . . . . Leg 10 | 2 3 3 2 Wheel . | . . . . Hover . | . . . . Flight . | . . . . Utility 11 | 2 4 5 . Device 6 | . 3 3 . Storage 2 | . . 2 . Processor . | . . . . Hackware . | . . . . Protection 3 | 2 1 . . Artifact . | . . . . Weapon 19 | 3 6 6 4 Energy Gun 3 | 1 1 1 . Energy Cannon 10 | . 4 5 1 Ballistic Gun 5 | 2 1 . 2 Ballistic Cannon . | . . . . Launcher 1 | . . . 1 Special Weapon . | . . . . Impact Weapon . | . . . . Slashing Weapon . | . . . . Piercing Weapon . | . . . . Special Melee Weapon . | . . . . Unidentified Prototypes 2 | . . 2 . Parts Lost 11 | . 2 . 9 Power 4 | . 1 . 3 Propulsion 3 | . . . 3 Utility 2 | . 1 . 1 Weapon 2 | . . . 2 Highest Loss Streak 9 | . 1 . 9 To Critical Strikes . | . . . . Average Slot Usage (%) 98 | . 98 99 93 Engine 15 | . 11 19 7 Core 1 | . . . 15 Leg 21 | . 24 19 21 Device 17 | . 14 20 15 Storage 6 | . . 10 8 Protection 2 | . 9 . . Energy Cannon 26 | . 20 29 23 Ballistic Gun 3 | . 12 . 1 Peak Build Rating 33 | 7 13 26 33 Average Rating 18 | 4 10 19 28 On Entrance 11 | . 7 13 25 Naked Turns . | . . . . Heaviest Build 53 | 12 21 50 53 Greatest Support 51 | 20 20 34 51 Greatest Overweight (x) 13 | 1 1 2 13 Average Overweight (x) 1 | . . 1 1 Largest Inventory Capacity 15 | 5 5 15 15 Average Capacity 11 | 5 5 13 15 Most Carried 15 | 5 5 15 12 Average Carried 8 | 1 3 10 10 Final Capacity 15 | 5 5 15 15 Final Carried 10 | 1 5 10 8 Class Distribution -------------------- 98% | Hacker-Tank Dominant Class ---------------- Hacker-Tank | -10/Materials Hacker-Tank | -9/Materials Hacker-Tank | -8/Materials Resources | -11 -10 -9 -8 ----------- Run | Yrd Mat Mat Mat Matter Collected 1300 | 232 373 645 50 Remotely . | . . . . Salvage Created 2227 | . 321 1387 519 Parts 148 | . 21 98 29 Haulers Intercepted 1 | . . . 1 Recyclers Shooed . | . . . . Parts Field Recycled . | . . . . Retrieved Matter . | . . . . Parts Self-Destructed . | . . . . Prevented . | . . . . Kills | -11 -10 -9 -8 ------- Run | Yrd Mat Mat Mat Combat Hostiles Destroyed 50 | . 9 31 10 Guns 7 | . 6 . 1 Cannons 42 | . 3 31 8 AOE 1 | . . . 1 Classes Destroyed 8 | . 3 3 2 Hauler 1 | . . . 1 Operator 2 | . . 2 . Watcher 10 | . 3 5 2 Swarmer 11 | . 4 5 2 Grunt 25 | . 5 18 2 Duelist 2 | . . 1 1 Sentry 10 | . . 7 3 Hunter 2 | . . . 2 Best Kill Streak 5 | . 3 5 5 Combat Bots Only 5 | . 3 5 3 Max Kills in Single Turn 1 | . 1 1 1 Gunslinging . | . . . . Exploded 1 | . . . 1 Melee . | . . . . Uniques/NPCs Destroyed . | . . . . Combat | -11 -10 -9 -8 -------- Run | Yrd Mat Mat Mat Hostile Shots Fired 242 | . 41 135 66 Missed 56 | . 11 34 11 Damage Taken 1881 | . 291 597 993 Core 780 | . 50 178 552 Absorbed by Shields 190 | . 37 153 . Redirected to Shielding 15 | . 15 . . Ignored by Resistances 937 | . 193 428 316 Regen/Repaired (Parts) 21 | . . 21 . Core Remaining (%) 78 | 100 80 55 . Volleys Fired 107 | . 22 50 35 Largest 3 | . 3 3 3 Hottest 204 | . 204 204 204 Shots Fired 277 | . 65 133 79 Gun 63 | . 51 . 12 Cannon 213 | . 14 133 66 Launcher 1 | . . . 1 Special . | . . . . Kinetic 50 | . 38 . 12 Thermal 226 | . 27 133 66 Explosive 1 | . . . 1 Electromagnetic . | . . . . Robot Hit Streak 16 | . 12 16 14 Robot Miss Streak 4 | . 2 3 4 Penetration Max . | . . . . Secondary Targets 2 | . 2 . . Max Gunslinging Chain 1 | . 1 . . Shots Hit Robots 171 | . 44 76 51 Core Hits 84 | . 20 40 24 Critical Kills 1 | . . 1 . Critical Parts Destroyed . | . . . . Critical Strikes 1 | . . 1 . Meltdown 1 | . . 1 . Melee Attacks . | . . . . Impact . | . . . . Slashing . | . . . . Piercing . | . . . . Sneak Attacks . | . . . . Combat Hostiles . | . . . . Follow-up Attacks . | . . . . Damage Inflicted 3455 | . 694 1632 1129 Guns 494 | . 378 . 116 Cannons 2620 | . 158 1620 842 Explosions 328 | . 158 . 170 Melee . | . . . . Ramming 13 | . . 12 1 Kinetic 379 | . 263 . 116 Thermal 2893 | . 431 1620 842 Explosive 170 | . . . 170 Electromagnetic . | . . . . Impact . | . . . . Slashing . | . . . . Piercing . | . . . . Highest Corruption 1 | . . 1 . Average Corruption 1 | . . 1 . Corruption Purged . | . . . . Corruption Blocked . | . . . . Effects 1 | . . 1 . Energy Discharges 1 | . . 1 . Overload Shots . | . . . . Overflow Damage 87 | . 76 . 11 Projectiles 12 | . 1 . 11 Explosions 75 | . 75 . . Melee . | . . . . Knockbacks 1 | . . 1 . Impact 1 | . . 1 . Kinetic . | . . . . Secondary . | . . . . Self-Inflicted Damage 83 | . 63 . 20 Shots 2 | . 1 . 1 Rammed 1 | . . . 1 Targets Rammed 3 | . . 2 1 Kicked 2 | . . 2 . Crushed . | . . . . Highest Temperature 1067 | . 327 593 1067 Average Temperature 225 | . 117 194 350 Received Heat Transfer 871 | . 177 253 441 Effects 104 | . 3 34 67 Shutdowns 30 | . . 11 19 Energy Bleed 7 | . 2 2 3 Interference 13 | . . 8 5 Matter Decay 10 | . 1 3 6 Short Circuit 4 | . . . 4 Damage (minor) 11 | . . 5 6 Damage (major) 22 | . . 4 18 Damage (core) 7 | . . 1 6 Siege Activations . | . . . . Robots Corrupted . | . . . . Combat Hostiles . | . . . . Parts Fried . | . . . . Impact Corruptions . | . . . . Robots Melted 1 | . . 1 . Combat Hostiles . | . . . . Parts Melted 8 | . 2 3 3 Heat Transferred 5111 | . 671 2923 1517 Parts Sabotaged . | . . . . Parts Stolen . | . . . . Parts Stripped . | . . . . Power Chain Reactions . | . . . . Alert | -11 -10 -9 -8 ------- Run | Yrd Mat Mat Mat Peak Influence 333 | . 180 206 333 Initial 43 | . . 15 43 Average 81 | . 71 80 119 Maximum Alert Level 1 | . . 1 1 Low Security (%) 95 | 100 100 97 73 Level 1 4 | . . 2 26 Level 2 . | . . . . Level 3 . | . . . . Level 4 . | . . . . Level 5 . | . . . . High Security . | . . . . Max Security . | . . . . Squads Dispatched 8 | . 1 6 1 Investigation 7 | . 1 5 1 Extermination . | . . . . Reinforcement 1 | . . 1 . Assault . | . . . . Garrison . | . . . . Intercept . | . . . . Searches Triggered . | . . . . Construction Impeded . | . . . . Haulers Reinforced . | . . . . Active Scanning Responses . | . . . . Cargo Convoy Interrupts . | . . . . Stealth | -11 -10 -9 -8 --------- Run | Yrd Mat Mat Mat Distress Signals 5 | . . 2 3 Communications Jammed . | . . . . Distress Signals . | . . . . Times Spotted 68 | . 14 38 16 Peak Tracking Total 5 | . 3 5 5 Tactical Retreats 3 | . 1 1 1 Traps | -11 -10 -9 -8 ------- Run | Yrd Mat Mat Mat Traps Triggered 6 | . 6 . . Indirectly . | . . . . Trap Hack Attempts . | . . . . Triggered . | . . . . Disarmed 2 | . 2 . . Reprogrammed 1 | . . 1 . Reused . | . . . . Traps Extracted . | . . . . Installed . | . . . . Triggered . | . . . . Machines | -11 -10 -9 -8 ---------- Run | Yrd Mat Mat Mat Machines Disabled 7 | . 2 2 3 Max in Single Turn 2 | . 2 1 1 Machines Repaired . | . . . . Machines Dismantled . | . . . . Machines Sabotaged . | . . . . Overloaded Fab Kills . | . . . . Hacking | -11 -10 -9 -8 --------- Run | Yrd Mat Mat Mat Machines Accessed 16 | . 6 9 1 Terminals 14 | . 6 7 1 Fabricators . | . . . . Repair Stations 1 | . . 1 . Recycling Units . | . . . . Scanalyzers 1 | . . 1 . Garrison Access . | . . . . Total Hacks 74 | . 28 36 10 Successful 47 | . 21 19 7 Failed 27 | . 7 17 3 Catastrophic . | . . . . Database Lockouts . | . . . . Manual . | . . . . Terminals 69 | . 28 31 10 Fabricators . | . . . . Repair Stations 3 | . . 3 . Recycling Units . | . . . . Scanalyzers 2 | . . 2 . Garrison Access . | . . . . Terminal Hacks 43 | . 21 15 7 Branch Access Points 1 | . . . 1 Emergency Access Points 4 | . 3 . 1 Terminal Index 1 | . . 1 . Alert Level 6 | . 3 2 1 Unreport Threat 2 | . . 1 1 Locate Traps 4 | . 2 2 . Disarm Traps 2 | . 2 . . Reprogram Traps 2 | . . 2 . Dispatch Records 4 | . 2 2 . Maintenance Status 3 | . 1 1 1 Security Status 1 | . . . 1 Surveillance Status 2 | . 2 . . Patrol Status 1 | . 1 . . Investigation Status 1 | . . 1 . Reinforcement Status 1 | . . 1 . Recall Reinforcements 1 | . . 1 . Hauler Manifests 2 | . . 1 1 Registered Prototypes 1 | . 1 . . Zone Layout 4 | . 4 . . Fabricator Hacks . | . . . . Repair Station Hacks 2 | . . 2 . Scan Component 1 | . . 1 . Repair 1 | . . 1 . Recycling Unit Hacks . | . . . . Scanalyzer 2 | . . 2 . Insert Component 1 | . . 1 . Analyze 1 | . . 1 . Garrison Access Hacks . | . . . . Unauthorized Hacks . | . . . . Terminals . | . . . . Fabricators . | . . . . Repair Stations . | . . . . Recycling Units . | . . . . Scanalyzers . | . . . . Garrison Access . | . . . . Data Cores Recovered . | . . . . Used . | . . . . Hacking Detections 12 | . 5 6 1 Full Trace Events 10 | . 3 6 1 Feedback Events 1 | . . 1 . Corruption 1 | . . 1 . Feedback Blocked . | . . . . Robot Schematics Acquired . | . . . . Robots Built . | . . . . Authchips . | . . . . Time . | . . . . Total Robot Build Rating . | . . . . Part Schematics Acquired 1 | . . 1 . Parts Built . | . . . . Authchips . | . . . . Time . | . . . . Total Part Build Rating . | . . . . Parts Repaired 1 | . . 1 . Time 32 | . . 32 . Parts Recycled . | . . . . Recycled Matter . | . . . . Retrieved Matter . | . . . . Retrieved Components . | . . . . Parts Scanalyzed 1 | . . 1 . Part Schematics Acquired 1 | . . 1 . Parts Damaged . | . . . . Bothacking | -11 -10 -9 -8 ------------ Run | Yrd Mat Mat Mat Used RIF Installer . | . . . . Robots Hacked . | . . . . Non-combat . | . . . . Combat . | . . . . Robot Hacks Applied . | . . . . Relay Couplers Released . | . . . . Fabnet Peak Effective % . | . . . . Robots Rewired . | . . . . Allies Hacked . | . . . . Hacks Repelled . | . . . . Allies | -11 -10 -9 -8 -------- Run | Yrd Mat Mat Mat Total Allies . | . . . . Largest Group . | . . . . Highest-Rated Group . | . . . . Highest-Rated Ally . | . . . . Total Orders . | . . . . Ally Attacks . | . . . . Total Damage . | . . . . Kills . | . . . . Allies Corrupted . | . . . . Allies Melted . | . . . . Intel | -11 -10 -9 -8 ------- Run | Yrd Mat Mat Mat Robot Analysis Total . | . . . . Derelict Logs Recovered . | . . . . Drone Launches . | . . . . Drone Recoveries . | . . . . Exploration | -11 -10 -9 -8 ------------- Run | Yrd Mat Mat Mat Turns Passed 4168 | 73 1180 2390 525 Spaces Moved 1904 | 51 734 925 194 Core 17 | 13 . . 4 Treads . | . . . . Legs 1887 | 38 734 925 190 Wheels . | . . . . Hover . | . . . . Flight . | . . . . Fastest Speed 50 | 50 120 190 196 Average Speed 194 | 112 147 234 208 Slowest Speed 700 | 120 190 270 700 Overloaded Moves . | . . . . Propulsion Burnouts . | . . . . Robots Hopped . | . . . . Cave-ins Triggered . | . . . . Exploration Rate (%) 46 | 4 90 69 23 Regions Visited 3 Branch Regions . Pre-discovered Areas . | . . . . Known Exits Taken 3 | 1 1 1 . Unknown Exits Taken . | . . . . Scrap Searched . | . . . . Spaces Dug . | . . . . Terrain Destroyed 32 | . 24 . 8 Melee . | . . . . Projectile . | . . . . AOE 32 | . 24 . 8 Terrain Rammed . | . . . . Walls Destroyed . | . . . . Machines Disabled . | . . . . Actions | -11 -10 -9 -8 --------- Run | Yrd Mat Mat Mat Total 2136 | 65 785 1041 245 Wait 21 | . . 21 . Move 1901 | 50 733 924 194 Hop . | . . . . Pick Up 40 | 7 13 16 4 Fast Attach 5 | 1 1 3 . Attach 22 | 6 8 2 6 Detach . | . . . . Swap 23 | 1 6 11 5 Drop 14 | . 2 12 . Fire 107 | . 22 50 35 Melee . | . . . . Ram 1 | . . . 1 Kick 2 | . . 2 . Crush . | . . . . Escape Stasis . | . . . . Rewire . | . . . . Trap . | . . . . Miscellaneous . | . . . . Route ------- -11/Scrapyard -10/Materials (discovered 5 exits: *Mat x3 / *Min x2) -9/Materials (discovered 3 exits: *Mat / *Min / *Sto) -8/Materials History --------- Turn | Location | Event 13 | -11/Scrapyard | Identified exit to Materials 13 | -11/Scrapyard | Discovered exit to Materials (range 16) 74 | -11/Scrapyard | Entered Materials 74 | -10/Materials | Evolved 1 slot: Weapon x1 129 | -10/Materials | Identified exit to Mines 129 | -10/Materials | Discovered exit to Mines (range 10) 155 | -10/Materials | Identified exit to Materials 155 | -10/Materials | Discovered exit to Materials (range 15) 311 | -10/Materials | Build established: Hacker-Tank 533 | -10/Materials | Discovered exit to Mines (range 15) 748 | -10/Materials | Discovered exit to Materials (range 14) 942 | -10/Materials | Discovered exit to Materials (range 10) 1254 | -10/Materials | Entered another Materials area 1254 | -9/Materials | Evolved 2 slots: Power x1, Utility x1 1716 | -9/Materials | Identified exit to Mines 1716 | -9/Materials | Discovered exit to Mines (range 16) 2360 | -9/Materials | Repaired Shield Generator 3444 | -9/Materials | Identified exit to Materials 3444 | -9/Materials | Discovered exit to Materials (range 9) 3446 | -9/Materials | Identified exit to Storage 3446 | -9/Materials | Discovered exit to Storage (range 13) 3644 | -9/Materials | Entered another Materials area 3644 | -8/Materials | Evolved 2 slots: Power x1, Propulsion x1 4005 | -8/Materials | Core integrity fell below 50% 4099 | -8/Materials | Core integrity fell below 20% 4147 | -8/Materials | Lost 9 parts (3p3n1u2w) 4169 | -8/Materials | Destroyed by G-47 Trooper with Particle Gun Last Messages --------------- U-05 Engineer lays Concrete. K-01 Serf collects debris. U-05 Engineer lays Concrete. U-05 Engineer builds a Wall. U-05 Engineer lays Concrete. K-01 Serf collects debris. U-05 Engineer lays Concrete. U-05 Engineer builds a Wall. U-05 Engineer lays Concrete. Slammed into U-05 Engineer. K-01 Serf collects debris. U-05 Engineer lays Concrete. K-01 Serf collects debris. U-05 Engineer lays Concrete. K-01 Serf collects debris. U-05 Engineer builds a Wall. U-05 Engineer lays Concrete. K-01 Serf collects debris. U-05 Engineer builds a Door. U-05 Engineer lays Concrete. Map ----- +----------------------------------------------------+ | " + # # #?????????????????????????? | | """ # # # #?????????????????????????? | | S" # + * # #?????????????????????????? | | # # # #?????????????????????????? | | ###### # # #?????????????????????????? | | ?????# # # #?????????????????????????? | | ?????# ########### #?????????????????????????? | | ###### ########??# #?????????????????????????? | | #??# #?????????????????????????? | | #??# #?????????????????????????? | | #??# #?????????????????????????? | | ############# #??? ??????????????????????????? | | #????????????? #??? ??????????????????????????? | | #######???????? #??? ??????????????????????????? | | # ####### #????????????????????????????????? | | # =[[ #????????????????????????????????? | | + !%= #????????????????????????????????? | | # ???????????????""?????????????? | | # ###+######?????????????????"""?????????????? | | ###+###????????????????#######?? ??????????????? | | % #?????????????????# ###+#####???????????? | | [! #??????????????#?## [ ????????????? | | #??????????????? ## % ??????????????? | | """" #????????????????k ?????????????????? | | """" #?????????????????#! %u###+????????????????? | | """" #?????????????????##@u%# ?????????????????? | | #?????????????????## % ##???????????????????? | | ###########???###########g #????????????????????? | | #???# + k #????????????????????? | | ####??????# # #????????????????????? | | #?????????# # #????????????????????? | | #?????????# # #????????????????????? | | #?????????#+######### #????????????????????? | | #?###+#???# #???????# #????????????????????? | | #?# T ##### #???????# #????????????????????? | | #?# + #???????# ????????????????????? | | ### #######???????# #???????????????????? | | + !#?????????????? #???????????????????? | | ###### #???????####??? #???????????????????? | | #????# #????? ?? #???????????????????? | | #????# #??? ???? #???????????????????? | | #######/### """?????? #???????????????????? | | ![ """?????? #???????????????????? | | !!! """?????? ?????????????????????? | | ! ! = = ?????????????????????????? | | ############[ ?????????????????????????? | | ????????????# !??????????????????????????? | | ????????????? ??????????????????????????? | | ?????????????? """ "???????????????????????????? | | ??????????????? """ "???????????????????????????? | +----------------------------------------------------+ Best States ------------- Heat Dissipation 41 Energy Generation 32 Energy Capacity 490 Matter Stores 400 Matter Capacity 400 Sight Range 16 Terrain Scan Density 10 Armor Coverage 150 Resistance: KI 35 Resistance: TH 35 Resistance: EX 35 Resistance: EM 35 Resistance: I 35 Resistance: S 35 Resistance: P 35 Weapon Shielding 33 Evasion (%) 55 Offensive Hacking 20 Item Schematics ----------------- Lgt. Assault Rifle | -9/Materials | Scanalyzed Robot Schematics ------------------ None Fabricated ------------ Nothing Alien Tech Used ----------------- None Achievements -------------- None Challenges ------------ None Game ------ Seed MetafiberHelicalFlakker Manual? 0 Play Time 00:30:49 Cumulative 3.7 hours Start 2024.09.16 @ 12:35:11 End 2024.09.16 @ 13:50:48 Sessions 1 Manual Loads 0 Difficulty Explorer Special Mode None Game No. 6 Rogue 0 Adventurer 0 Explorer 6 Win Type - Total 0 Types 0/0/0/0/0/0/0/0/0 Lore% 1 Gallery% 11 Achievement% 10 Wizard Run 0 Options --------- Layout 1 ASCII 0 Keyboard 0 Movement Arrows Keybinds 0 Fullscreen 2 Font 24/Smallcaps Map View 50x35 Zoom Use 0% Tactical HUD 0 Map Filters NONE Filters NONE Steam 1 RUN: ab953371-d5a2-4f5a-9387-a54914971a1a